bitfinex/quotes_SOLUSD_20240809
["timestamp","ask_amount","ask_price","bid_price","bid_amount"]
[1723222056224,13.44754103,151.55,151.5,6.6003]
[1723222056629,6.84874103,151.55,151.45,37.57]
[1723222056931,6.84874103,151.55,151.47,16.5043]
[1723222057332,82.82098,151.54,151.44,29.4306]
[1723222057558,82.82098,151.54,151.45,6.6027]
[1723222057559,6.6007,151.5,151.45,6.6027]
[1723222057850,6.6003,151.51,151.46,6.6023]
[1723222058229,6.601,151.5,151.45,6.6026]
[1723222058433,6.6011,151.49,151.45,6.6026]
[1723222058666,6.6011,151.49,151.44,29.4308]
[1723222058949,6.6015,151.48,151.44,29.4308]
[1723222059149,6.6015,151.48,151.44,22.8277]
[1723222059540,6.6016,151.48,151.44,6.3201]
[1723222059737,6.84695725,151.51,151.44,6.3201]
[1723222059937,0.12549,151.49,151.43,0.8168031]
[1723222060135,6.6032,151.44,151.43,0.8168031]
[1723222060440,37.57,151.48,151.43,0.8168031]
[1723222060751,6.6032,151.44,151.43,0.8168031]
[1723222063767,6.6042,151.42,151.38,16.5144]
[1723222063950,6.6046,151.41,151.36,6.6066]
[1723222064146,0.12549,151.45,151.35,23.0024]
[1723222064347,6.6041,151.42,151.38,6.6058]
[1723222064758,6.6041,151.42,151.37,6.6062]
[1723222065544,6.6047,151.41,151.36,6.6067]
[1723222065966,6.6042,151.42,151.35,23.0024]
[1723222066162,45.25098,151.45,151.38,6.6058]
[1723222066358,20.0,151.44,151.38,6.6058]
[1723222066561,20.0,151.44,151.35,23.0024]
[1723222066562,54.0855,151.48,151.4,6.605]
[1723222066767,20.0,151.47,151.4,6.605]
[1723222066973,16.5032,151.49,151.42,6.604]
[1723222067267,6.602,151.47,151.42,6.604]
[1723222067650,6.6025,151.46,151.41,23.1154]
[1723222068586,6.6018,151.48,151.43,6.6035]
[1723222068756,6.84695725,151.51,151.44,16.5074]
[1723222068757,6.6007,151.5,151.44,16.5074]
[1723222069066,6.6012,151.49,151.44,23.1105]
[1723222069367,6.6015,151.48,151.44,23.1105]
[1723222069576,17.18929473,151.51,151.47,6.6016]
[1723222069948,6.6007,151.5,151.46,16.5052]
[1723222070148,17.18929473,151.51,151.44,6.6031]
[1723222070370,6.6015,151.49,151.44,6.6031]
[1723222070563,17.18929473,151.51,151.44,6.6032]
[1723222070871,6.6016,151.48,151.43,29.2958]
[1723222071058,6.6011,151.49,151.44,6.6032]
[1723222071656,6.6007,151.5,151.43,22.6921]
[1723222071853,23.78949473,151.51,151.47,6.6018]
[1723222072061,6.6007,151.5,151.46,6.6023]
[1723222072951,23.78959473,151.51,151.46,6.6023]
[1723222073375,6.84695725,151.51,151.47,17.82454276]
[1723222073554,6.3788,151.57,151.47,17.82454276]
[1723222073745,6.840618,151.55,151.47,17.82454276]
[1723222074267,16.93908194,151.56,151.51,6.5998]
[1723222074472,6.5981,151.56,151.51,6.5998]
[1723222074860,17.17822763,151.59,151.52,6.5996]
[1723222074861,6.5977,151.57,151.52,6.5996]
[1723222075174,17.17822763,151.59,151.52,6.5996]
[1723222075175,13.43691488,151.59,151.53,16.4978]
[1723222075384,6.84011488,151.59,151.55,6.5984]
[1723222075596,6.5959,151.61,151.56,6.5979]
[1723222075877,6.5964,151.6,151.55,7.91779542]
[1723222076181,6.85021716,151.62,151.57,6.5975]
[1723222076182,13.44571716,151.62,151.57,6.5975]
[1723222076372,6.5955,151.62,151.57,6.5975]
[1723222076568,6.5959,151.61,151.56,44.1679]
[1723222076892,6.5959,151.61,151.56,6.5979]
[1723222077097,6.5959,151.61,151.49,21.4879]
[1723222077098,6.5976,151.57,151.52,23.0988]
[1723222077265,6.598,151.56,151.52,16.4992]
[1723222077465,6.5977,151.57,151.52,23.0989]
[1723222078391,16.4907,151.6,151.51,6.6002]
[1723222078586,6.5993,151.53,151.49,37.9902]
[1723222078797,6.5994,151.53,151.49,37.9902]
[1723222078991,37.69549,151.61,151.49,37.9902]
[1723222079295,20.0,151.6,151.49,37.9902]
[1723222079471,6.5981,151.56,151.51,6.6002]
[1723222080190,6.5972,151.58,151.52,17.81859964]
[1723222080489,6.5968,151.59,151.52,54.0688]
[1723222080676,6.5968,151.59,151.54,6.5988]
[1723222080878,6.5972,151.58,151.53,6.5992]
[1723222081069,6.5976,151.57,151.52,23.0985]
[1723222081278,6.598,151.56,151.52,23.0985]
[1723222081483,6.5975,151.58,151.52,54.0688]
[1723222081685,6.5962,151.61,151.54,37.57]
[1723222081887,6.5967,151.59,151.54,37.57]
[1723222082270,6.5971,151.58,151.54,60.666]
[1723222082470,37.57,151.63,151.51,16.5002]
[1723222082787,16.4903,151.61,151.53,6.5989]
[1723222082989,6.5975,151.58,151.51,16.5002]
[1723222083171,6.5972,151.58,151.53,16.4978]
[1723222083369,20.0,151.6,151.53,16.4978]
[1723222083597,6.5968,151.59,151.54,6.5988]
[1723222083895,6.5973,151.58,151.54,6.5988]
[1723222084080,6.5973,151.58,151.53,23.097]
[1723222084396,6.5969,151.59,151.54,6.5987]
[1723222084601,6.5972,151.58,151.54,6.5987]
[1723222084900,20.0,151.61,151.55,6.5984]
[1723222085407,6.5968,151.59,151.54,6.5988]
[1723222086493,6.5958,151.61,151.56,6.5979]
[1723222086694,6.5958,151.61,151.56,1.31939209]
[1723222086901,6.5955,151.62,151.56,38.88939209]
[1723222087106,6.5955,151.62,151.57,6.4149]
[1723222087289,6.5955,151.62,151.58,1.31928312]
[1723222087476,6.5963,151.6,151.58,1.31928312]
[1723222087682,6.597,151.59,151.57,6.4149]
[1723222087989,6.5964,151.6,151.57,6.4149]
[1723222088188,6.5969,151.59,151.57,6.4149]
[1723222088693,43.33365637,151.64,151.57,6.4149]
[1723222088694,6.5963,151.6,151.57,6.4149]
[1723222089411,26.84625637,151.64,151.57,22.9084]
[1723222089579,6.84625637,151.64,151.61,6.5958]
[1723222089916,6.5938,151.66,151.6,37.57]
[1723222090086,6.5942,151.65,151.61,1.31895734]
[1723222090396,6.5955,151.62,151.58,16.1916]
[1723222090621,6.84274012,151.67,151.57,6.4149]
[1723222090622,37.57,151.66,151.57,6.4149]
[1723222090905,37.57,151.64,151.57,6.4149]
[1723222091109,20.0,151.63,151.54,16.5438]
[1723222091476,6.5973,151.58,151.54,16.5438]
[1723222091676,54.0592,151.62,151.54,16.5438]
[1723222091912,6.598,151.56,151.54,16.5438]
[1723222092122,54.0614,151.6,151.5,39.6455]
[1723222092287,45.12549,151.59,151.5,33.045]
[1723222092493,65.12549,151.59,151.5,16.5438]
[1723222092794,6.5976,151.57,151.53,6.5991]
[1723222093014,20.0,151.59,151.5,37.57]
[1723222093015,6.5982,151.56,151.52,16.499]
[1723222093515,20.0,151.59,151.49,23.055]
[1723222093815,82.69549,151.58,151.49,6.5528]
[1723222094116,6.6002,151.51,151.49,6.5528]
[1723222094996,6.5997,151.52,151.49,6.5528]
[1723222095708,6.6002,151.51,151.49,6.5528]
[1723222095925,6.6006,151.5,151.46,16.5055]
[1723222096102,16.497,151.55,151.46,23.1076]
[1723222096103,6.6001,151.52,151.46,23.1076]
[1723222096304,16.497,151.55,151.46,16.5055]
[1723222096492,20.0,151.54,151.46,16.5055]
[1723222096990,6.6003,151.51,151.46,23.1077]
[1723222097320,6.6003,151.51,151.46,16.5055]
[1723222098414,6.6007,151.5,151.46,16.5055]
[1723222098788,37.57,151.52,151.45,6.4123]
[1723222098995,20.0,151.51,151.45,6.4123]
[1723222100100,6.6006,151.5,151.45,13.0147]
[1723222100802,26.6002,151.51,151.46,6.6023]
[1723222101017,37.57,151.54,151.47,6.6016]
[1723222101300,26.5995,151.53,151.45,22.9186]
[1723222101503,13.43835967,151.54,151.47,16.504]
[1723222101725,13.43835967,151.54,151.48,6.6014]
[1723222102223,6.5995,151.53,151.48,6.6014]
[1723222102424,6.83945967,151.54,151.49,16.5019]
[1723222102602,13.43835967,151.54,151.49,23.1029]
[1723222102929,6.5985,151.55,151.5,6.6006]
[1723222103303,6.5989,151.54,151.49,23.1029]
[1723222103503,6.5984,151.55,151.5,6.6005]
[1723222104614,13.44017023,151.56,151.51,6.6001]
[1723222104817,6.84217023,151.56,151.5,37.57]
[1723222105017,16.5596,151.6,151.5,37.57]
[1723222105215,6.83990521,151.57,151.5,37.57]
[1723222105418,6.5989,151.54,151.5,37.57]
[1723222106132,6.5989,151.54,151.49,23.1026]
[1723222106708,6.5985,151.55,151.5,6.6006]
[1723222106913,13.43818107,151.57,151.52,6.5997]
[1723222107116,6.598,151.56,151.51,23.0999]
[1723222107814,13.43778107,151.57,151.52,6.5997]
[1723222108024,6.598,151.56,151.51,23.1]
[1723222108925,13.43778107,151.57,151.52,6.5996]
[1723222109128,16.4853,151.65,151.54,37.57]
[1723222109429,6.5962,151.61,151.56,6.5978]
[1723222110121,6.5963,151.6,151.54,37.57]
[1723222110307,6.5968,151.59,151.54,44.1688]
[1723222110514,6.5968,151.59,151.55,6.5984]
[1723222110716,6.83909741,151.63,151.55,6.5984]
[1723222110717,6.5964,151.6,151.55,6.5984]
[1723222110914,6.5959,151.61,151.56,7.91731763]
[1723222111527,6.5959,151.61,151.56,6.5979]
[1723222111917,6.5959,151.61,151.57,6.5975]
[1723222112114,6.83909741,151.63,151.58,38.88929003]
[1723222112320,16.4823,151.68,151.58,38.88929003]
[1723222112534,6.84361188,151.67,151.58,37.57]
[1723222112749,6.84361188,151.67,151.6,37.57]
[1723222113039,6.84361188,151.67,151.62,6.5954]
[1723222113040,6.5932,151.67,151.62,6.5954]
[1723222113429,6.5932,151.67,151.62,45.4841297]
[1723222113935,6.84451198,151.7,151.61,16.489]
[1723222114231,6.5943,151.65,151.61,16.489]
[1723222115436,6.5937,151.66,151.61,23.0847]
[1723222116319,16.4816,151.69,151.6,23.0723]
[1723222116541,0.12549,151.68,151.6,23.0723]
[1723222116738,6.84451198,151.7,151.6,70.5361]
[1723222116941,20.0,151.69,151.61,1.31890131]
[1723222117244,20.0,151.69,151.6,70.5361]
[1723222117447,20.0,151.69,151.62,16.4878]
[1723222117648,6.5929,151.68,151.63,6.5946]
[1723222118545,6.5929,151.68,151.64,6.5944]
[1723222118926,6.5937,151.66,151.62,16.4878]
[1723222119948,6.5933,151.67,151.62,23.083]
[1723222120244,6.84451198,151.7,151.64,16.4857]
[1723222120417,6.84451198,151.7,151.67,6.5931]
[1723222120620,6.5915,151.71,151.66,54.0534]
[1723222121022,6.5928,151.68,151.64,37.57]
[1723222121235,6.5933,151.67,151.62,60.6528]
[1723222121724,6.5929,151.68,151.64,6.5944]
[1723222121945,6.592,151.7,151.65,6.5939]
[1723222122155,6.5914,151.72,151.64,37.57]
[1723222122449,6.5912,151.72,151.67,6.4501]
[1723222122656,6.83443173,151.74,151.67,6.4501]
[1723222122657,6.83443173,151.74,151.67,13.0432]
[1723222123850,20.0,151.73,151.67,13.0432]
[1723222124028,6.5915,151.71,151.67,13.0432]
[1723222124426,6.5911,151.72,151.67,13.0433]
[1723222124626,26.591,151.73,151.68,6.5927]
[1723222125440,10.33140488,151.75,151.68,52.6315]
[1723222125631,10.33140488,151.75,151.71,6.5911]
[1723222126153,16.92120488,151.75,151.7,60.6411]
[1723222126645,6.5902,151.74,151.7,23.0711]
[1723222126823,16.92130488,151.75,151.7,23.0711]
[1723222127741,6.5902,151.74,151.7,23.0711]
[1723222127945,6.83236468,151.77,151.71,6.5913]
[1723222128659,6.5896,151.76,151.71,7.90944355]
[1723222128833,13.42136468,151.77,151.71,1.31814355]
[1723222129038,6.83236468,151.77,151.73,6.5905]
[1723222129352,6.83236468,151.77,151.73,1.31796983]
[1723222129353,6.589,151.77,151.73,1.31796983]
[1723222129529,6.589,151.77,151.73,7.90847989]
[1723222130840,6.5886,151.78,151.73,7.90847989]
[1723222131143,6.5881,151.79,151.74,7.90802586]
[1723222131345,14.2534182,151.8,151.75,13.1035]
[1723222131530,7.6658182,151.8,151.76,45.47696124]
[1723222131725,7.4045031,151.8,151.76,29.2]
[1723222131942,0.8168031,151.8,151.72,29.2]
[1723222132143,6.589,151.77,151.72,35.7909]
[1723222132354,6.589,151.77,151.73,6.5906]
[1723222132653,6.589,151.77,151.72,29.2]
[1723222132654,6.589,151.77,151.72,35.7909]
[1723222133221,46.4864031,151.8,151.71,29.5833]
[1723222133463,6.5902,151.74,151.71,6.5138]
[1723222133647,29.2,151.77,151.68,38.1359]
[1723222133846,6.5915,151.71,151.68,15.0615]
[1723222134034,29.2,151.75,151.68,15.0615]
[1723222134229,20.0,151.74,151.68,15.0615]
[1723222134423,20.0,151.74,151.7,6.5918]
[1723222134624,26.5902,151.74,151.7,6.5918]
[1723222134849,26.5902,151.74,151.69,52.2725]
[1723222135537,20.0,151.74,151.7,6.5919]
[1723222135843,26.5902,151.74,151.7,6.5919]
[1723222136452,62.90206505,151.8,151.71,6.5914]
[1723222136752,45.25098,151.79,151.7,37.58]
[1723222137264,6.5894,151.76,151.71,6.5914]
[1723222138140,6.5889,151.77,151.72,8.0344799]
[1723222138332,6.5889,151.77,151.72,6.71639]
[1723222138333,20.0,151.76,151.72,6.71639]
[1723222138533,26.5897,151.76,151.71,23.0697]
[1723222138737,6.5898,151.75,151.7,37.58]
[1723222138956,20.0,151.76,151.7,54.059]
[1723222139147,20.0,151.79,151.71,0.12549]
[1723222139336,6.589,151.77,151.72,6.591]
[1723222139538,6.589,151.77,151.71,0.12549]
[1723222139539,6.589,151.77,151.73,7.90852881]
[1723222139981,6.589,151.77,151.71,0.12549]
[1723222139982,6.5895,151.76,151.71,6.71659]
[1723222140466,6.589,151.77,151.72,6.591]
[1723222140693,6.589,151.77,151.73,6.5905]
[1723222141052,6.589,151.77,151.72,44.1709]
[1723222141261,20.0,151.79,151.72,37.58]
[1723222141585,0.8168031,151.8,151.78,6.5884]
[1723222141741,0.8168031,151.8,151.77,6.5889]
[1723222141940,7.4045031,151.8,151.76,32.6287]
[1723222142245,7.4045031,151.8,151.76,39.218]
[1723222142441,0.8168031,151.8,151.77,6.5888]
[1723222142661,0.8168031,151.8,151.78,1.31749327]
[1723222143045,0.8168031,151.8,151.77,7.90629327]
[1723222143445,0.8168031,151.8,151.78,55.74426164]
[1723222143740,0.8168031,151.8,151.79,6.588]
[1723222143950,0.8168031,151.8,151.79,6.71349]
[1723222144547,0.8168031,151.8,151.79,6.83898]
[1723222144742,0.8168031,151.8,151.79,6.96447]
[1723222145162,0.8168031,151.8,151.79,58.27266]
[1723222145952,6.84575204,151.88,151.83,6.5859]
[1723222146147,6.84575204,151.88,151.82,16.4661]
[1723222146148,6.84575204,151.88,151.84,1.31703735]
[1723222146380,6.5833,151.9,151.84,38.89703735]
[1723222146553,6.5833,151.9,151.85,6.5854]
[1723222146759,13.43103373,151.91,151.86,6.5849]
[1723222147061,6.84823373,151.91,151.85,6.585]
[1723222147270,6.5841,151.88,151.84,31.8535]
[1723222147973,6.5833,151.9,151.85,6.5851]
[1723222148980,6.84823373,151.91,151.82,37.58]
[1723222149168,6.84823373,151.91,151.83,0.12549]
[1723222149368,6.5842,151.88,151.83,0.12549]
[1723222149580,6.5837,151.89,151.84,6.5855]
[1723222150279,6.84823373,151.91,151.83,16.59059]
[1723222150280,6.5833,151.9,151.83,16.59059]
[1723222150483,6.5833,151.9,151.85,6.5853]
[1723222150976,6.5833,151.9,151.83,16.59059]
[1723222151280,6.84823373,151.91,151.85,6.5661]
[1723222151478,6.84823373,151.91,151.86,37.83098]
[1723222151791,7.3979031,151.95,151.9,6.5832]
[1723222151954,0.8168031,151.95,151.91,6.5827]
[1723222152159,0.8168031,151.95,151.91,7.8991947]
[1723222152471,0.8168031,151.95,151.89,16.4587]
[1723222152876,6.5816,151.94,151.89,23.0423]
[1723222153062,7.3980031,151.95,151.9,6.5831]
[1723222153256,0.8168031,151.95,151.93,6.5819]
[1723222153462,0.8168031,151.95,151.92,6.5823]
[1723222153769,0.8168031,151.95,151.93,6.5819]
[1723222154076,0.8168031,151.95,151.94,6.5815]
[1723222154277,0.8168031,151.95,151.94,6.70699]
[1723222154461,0.8168031,151.95,151.94,6.95797]
[1723222154658,0.8168031,151.95,151.94,6.5815]
[1723222155365,0.8168031,151.95,151.93,23.0139]
[1723222155764,0.8168031,151.95,151.93,16.4543]
[1723222156068,0.8168031,151.95,151.91,6.5827]
[1723222156265,0.8168031,151.95,151.9,16.4578]
[1723222156467,0.8168031,151.95,151.92,6.5823]
[1723222156861,0.8168031,151.95,151.9,16.4578]
[1723222156862,0.8168031,151.95,151.9,23.0407]
[1723222157262,0.8168031,151.95,151.89,13.1405]
[1723222157459,6.582,151.93,151.87,32.6531]
[1723222157683,0.8168031,151.95,151.89,16.4587]
[1723222157888,0.8168031,151.95,151.9,1.31637878]
[1723222158067,0.8168031,151.95,151.88,37.58]
[1723222158261,0.8168031,151.95,151.93,6.5816]
[1723222158487,0.8168031,151.95,151.94,6.5815]
[1723222159161,0.8168031,151.95,151.93,23.0362]
[1723222159684,7.3982031,151.95,151.9,16.458]
[1723222159866,7.3982031,151.95,151.91,0.12549]
[1723222160192,0.8168031,151.95,151.92,6.582]
[1723222161789,0.8168031,151.95,151.93,6.5819]
[1723222162176,0.8168031,151.95,151.94,6.5815]
[1723222162791,0.8168031,151.95,151.94,6.95797]
[1723222163865,0.8168031,151.95,151.94,52.08346]
[1723222164257,6.88028071,151.99,151.98,23.15479]
[1723222164467,6.88028071,151.99,151.95,16.4524]
[1723222164779,6.88028071,151.99,151.94,0.12549]
[1723222164989,44.46028071,151.99,151.95,0.12549]
[1723222165170,51.03968071,151.99,151.95,0.12549]
[1723222165362,44.46028071,151.99,151.95,6.70649]
[1723222165565,44.46028071,151.99,151.95,0.12549]
[1723222165785,44.46028071,151.99,151.94,0.12549]
[1723222166199,44.46028071,151.99,151.93,6.3437]
[1723222166366,44.1603,151.97,151.92,23.0379]
[1723222166676,37.58,151.97,151.93,6.5817]
[1723222167259,37.58,151.97,151.93,6.5818]
[1723222167466,6.88098991,151.98,151.95,16.4526]
[1723222167786,6.88098991,151.98,151.97,6.5802]
[1723222167994,6.88098991,151.98,151.97,6.83118]
[1723222168289,6.88098991,151.98,151.97,6.95667]
[1723222168993,6.88098991,151.98,151.97,7.08216]
[1723222169173,6.88098991,151.98,151.97,58.57866]
[1723222172874,6.88098991,151.98,151.97,13.32768]
[1723222173501,6.88098991,151.98,151.97,6.4965]
[1723222173672,6.88098991,151.98,151.95,16.4526]
[1723222173874,6.88098991,151.98,151.97,6.5802]
[1723222174093,6.88098991,151.98,151.95,16.4526]
[1723222174274,6.88098991,151.98,151.95,23.0336]
[1723222174883,6.88098991,151.98,151.95,16.4526]
[1723222175097,6.88098991,151.98,151.97,6.5802]
[1723222175571,6.88098991,151.98,151.97,6.70569]
[1723222175805,6.88098991,151.98,151.97,52.08216]
[1723222176180,6.88098991,151.98,151.97,0.25098]
[1723222176386,6.88098991,151.98,151.95,16.4526]
[1723222176599,6.88098991,151.98,151.95,23.0336]
[1723222176985,6.88098991,151.98,151.96,0.12549]
[1723222177311,6.88098991,151.98,151.94,6.5814]
[1723222177890,6.5805,151.97,151.92,23.0376]
[1723222178093,6.5806,151.96,151.92,16.4556]
[1723222178283,44.46098991,151.98,151.92,16.4556]
[1723222178486,44.46098991,151.98,151.94,6.5815]
[1723222179476,6.88098991,151.98,151.96,6.5806]
[1723222180080,6.88098991,151.98,151.94,16.4528]
[1723222180081,6.88098991,151.98,151.95,6.70649]
[1723222180279,6.88098991,151.98,151.96,0.12549]
[1723222180505,44.46098991,151.98,151.96,0.12549]
[1723222180683,6.88098991,151.98,151.96,0.12549]
[1723222180885,6.88098991,151.98,151.97,6.70569]
[1723222181081,6.88098991,151.98,151.97,76.57335062]
[1723222181506,6.88098991,151.98,151.97,75.25766]
[1723222181703,6.88098991,151.98,151.97,58.60466]
[1723222182594,37.58,152.08,152.04,6.5772]
[1723222182911,37.58,152.08,152.05,0.12549]
[1723222183400,37.58,152.06,151.98,16.4485]
[1723222183608,44.1564,152.06,151.99,45.50196]
[1723222183800,37.58,152.06,152.0,16.4463]
[1723222184002,37.58,152.06,152.02,6.578]
[1723222184207,37.58,152.06,152.03,6.82858]
[1723222184406,37.58,152.06,152.03,0.25098]
[1723222184791,37.58,152.06,152.02,45.25098]
[1723222185114,37.58,152.06,152.03,0.12549]
[1723222185317,37.58,152.06,152.02,45.25098]
[1723222185497,37.58,152.06,152.03,6.82858]
[1723222185681,6.87717759,152.05,152.04,0.25098]
[1723222186490,6.87717759,152.05,152.04,1.56616023]
[1723222186909,7.3968031,152.11,152.04,1.56616023]
[1723222186910,0.8168031,152.11,152.05,0.12549]
[1723222187084,44.1554,152.09,152.04,0.25098]
[1723222187286,44.1554,152.09,152.01,45.0]
[1723222187287,37.58,152.05,151.96,16.241]
[1723222187610,0.8168031,152.11,151.96,16.241]
[1723222187611,6.2023,152.08,151.96,16.4507]
[1723222187802,6.2023,152.08,151.95,6.581]
[1723222187803,44.1585,152.01,151.95,6.581]
[1723222187993,22.62247161,152.05,151.93,22.6749]
[1723222187994,37.58,151.99,151.93,22.6749]
[1723222188384,32.1868,152.05,151.96,16.4516]
[1723222188385,6.87946739,152.02,151.96,16.4516]
[1723222188694,6.87946739,152.02,151.97,7.89576435]
[1723222188695,37.58,152.02,151.97,7.89576435]
[1723222188890,37.58,152.02,151.96,16.4516]
[1723222189096,44.1581,152.02,151.97,1.3156947]
[1723222189311,44.1581,152.02,151.97,7.8957947]
[1723222189612,22.62260324,152.05,152.0,16.4464]
[1723222189810,53.324,152.05,152.0,16.4464]
[1723222190610,37.58,152.05,152.01,8.01928526]
[1723222190802,6.5763,152.06,152.02,0.25098]
[1723222191126,37.58,152.07,152.01,0.12549]
[1723222191127,44.45726975,152.07,152.01,0.12549]
[1723222191418,37.58,152.05,152.01,0.12549]
[1723222191589,6.5777,152.03,152.01,0.12549]
[1723222192007,37.58,152.03,151.93,6.2201]
[1723222192184,6.578,152.03,151.98,6.5796]
[1723222192389,37.58,152.05,151.96,16.4508]
[1723222192601,6.5772,152.04,151.99,6.5793]
[1723222192807,44.45726975,152.07,151.99,17.76374321]
[1723222192808,6.87726975,152.07,151.99,17.76374321]
[1723222193019,6.87726975,152.07,152.0,6.2794]
[1723222193193,37.58,152.08,152.01,0.12549]
[1723222193522,20.0,152.07,152.01,45.50196]
[1723222194113,22.61148402,152.09,152.01,45.50196]
[1723222194114,26.5755,152.08,152.03,6.5776]
[1723222194317,20.0,152.08,152.04,45.37647]
[1723222194615,20.0,152.08,152.04,0.25098]
[1723222194810,37.58,152.1,152.04,0.25098]
[1723222194811,20.0,152.09,152.04,0.25098]
[1723222195008,6.5767,152.06,152.04,0.12549]
[1723222195215,37.58,152.08,152.04,0.12549]
[1723222195392,20.0,152.09,152.04,0.12549]
[1723222195920,6.5766,152.06,152.04,0.25098]
[1723222196088,20.0,152.09,152.01,16.4454]
[1723222196288,20.0,152.09,152.01,6.5784]
[1723222196289,6.5763,152.06,152.01,6.5784]
[1723222196724,6.5763,152.06,152.01,6.5781]
[1723222197098,37.58,152.08,152.0,6.2794]
[1723222197425,37.58,152.08,151.96,52.8759]
[1723222197426,6.5789,152.0,151.96,21.6839]
[1723222197610,37.58,152.02,151.94,16.4533]
[1723222197813,6.5794,151.99,151.94,16.4533]
[1723222198003,6.5789,152.0,151.95,6.5811]
[1723222198198,6.5786,152.01,151.96,6.5806]
[1723222199206,6.5794,151.99,151.94,23.0347]
[1723222199433,6.5794,151.99,151.95,45.0]
[1723222199812,37.58,152.02,151.92,21.6839]
[1723222199813,37.58,152.0,151.92,21.6839]
[1723222200010,37.58,152.02,151.94,16.4531]
[1723222200318,37.58,152.04,151.96,16.4507]
[1723222200505,6.5787,152.01,151.96,16.4507]
[1723222200898,6.5787,152.01,151.96,23.031]
[1723222201317,6.5787,152.01,151.97,6.95657]
[1723222201811,37.58,152.02,151.97,0.12549]
[1723222202130,44.1602,151.98,151.92,21.6839]
[1723222202332,10.32234502,152.1,151.95,37.58]
[1723222202626,6.5755,152.08,151.99,37.58]
[1723222202835,6.5751,152.09,152.0,1.31509159]
[1723222203010,6.5754,152.08,152.02,16.4444]
[1723222203201,6.5754,152.08,152.04,0.12549]
[1723222203408,37.58,152.09,152.03,0.25098]
[1723222203733,44.45682942,152.09,152.03,0.25098]
[1723222204409,6.5764,152.06,152.03,0.25098]
[1723222204616,37.58,152.05,151.98,6.3597]
[1723222205130,16.4404,152.07,151.98,6.3597]
[1723222205303,6.5776,152.03,151.98,6.3597]
[1723222205627,57.58,152.06,151.99,1.31553324]
[1723222205841,6.87682942,152.09,152.02,37.58]
[1723222206002,37.58,152.14,152.05,0.12549]
[1723222206202,6.5739,152.12,152.07,0.12549]
[1723222206431,6.5739,152.12,152.07,1.56577346]
[1723222206739,51.02753905,152.14,152.08,6.5753]
[1723222207035,13.44753905,152.14,152.09,1.44012209]
[1723222207209,13.44753905,152.14,152.1,0.37647]
[1723222207400,6.5724,152.16,152.1,0.50196]
[1723222207602,37.58,152.14,152.04,6.4867]
[1723222207832,37.58,152.14,152.05,45.37647]
[1723222208010,6.5735,152.13,152.08,0.12549]
[1723222208202,6.5729,152.14,152.1,0.12549]
[1723222208406,7.3911031,152.11,152.08,45.25098]
[1723222208598,0.8168031,152.11,152.08,0.12549]
[1723222208804,0.8168031,152.11,152.08,0.25098]
[1723222209314,6.5758,152.08,152.05,0.12549]
[1723222209513,44.1549,152.1,152.05,0.25098]
[1723222209803,6.5749,152.1,152.05,0.25098]
[1723222210006,0.8168031,152.11,152.05,1.5659106]
[1723222210505,7.3913031,152.11,152.05,0.25098]
[1723222210831,7.3913031,152.11,152.06,0.25098]
[1723222211033,0.8168031,152.11,152.07,0.25098]
[1723222211231,0.8168031,152.11,152.08,0.12549]
[1723222211727,0.8168031,152.11,152.08,0.25098]
[1723222211906,0.8168031,152.11,152.09,0.12549]
[1723222212109,0.8168031,152.11,152.08,0.25098]
[1723222212333,0.8168031,152.11,152.09,0.12549]
[1723222213308,6.5746,152.1,152.07,0.12549]
[1723222213635,6.5746,152.1,152.07,0.37647]